Cogmind - Beta 16.1 @@@ ROGUE MODE // 2026.02.14 @ 21:06:24 Player: Skergy Result: Destroyed by CE-FFE(R) with Subdweller Machine Gun Performance ------------- Evolutions (0) 0 Regions Visited (2) 400 Robots Destroyed (25) 125 Value Destroyed (737) 737 Prototype IDs (0) 0 Alien Tech Used (0) 0 Bonus (0) 0 TOTAL SCORE: 1262 Bonus ------- None Cogmind --------- Core Integrity 0/250 Matter 285/300 Energy 13/100 System Corruption 0% Temperature Cool (0) Movement Rolling (200) Ox8 Location -10/Subcaves Parts ------- > --- POWER (1) -------- (None) > --- PROPULSION (2) --- Wheel > --- UTILITY (2) ------ Huge Storage Unit ECM Suite > --- WEAPON (2) ------- Subdweller Machine Gun > --- INVENTORY (25) --- Ion Engine Light Treads Light Treads Aluminum Leg Wheel Subdweller Monowheel Heat Sink Improved Heat Sink Small Storage Unit Medium Matter Pod (100) High-capacity Matter Pod (200) Structural Scanner Machine Analyzer Visual Processing Unit Subdweller Optics Subdweller Optics Subdweller Optics Small Laser Light Assault Rifle Battle Rifle Datajack Mining Laser Flamer Peak State ------------ > --- POWER ------------ Ion Engine > --- PROPULSION ------- Light Treads Wheel > --- UTILITY ---------- Improved Heat Sink Huge Storage Unit > --- WEAPON ----------- Small Laser Beam Cannon > --- INVENTORY -------- Ion Engine Light Treads Light Treads Aluminum Leg Wheel Subdweller Monowheel Heat Sink Small Storage Unit Medium Matter Pod High-capacity Matter Pod Structural Scanner Machine Analyzer Visual Processing Unit Subdweller Optics ECM Suite Small Laser Light Assault Rifle Datajack Mining Laser [Rating: 11] Favorites ----------- Power Ion Engine Engine Ion Engine Propulsion Light Treads Treads Light Treads Wheel Wheel Utility Huge Storage Unit Device Improved Heat Sink Storage Huge Storage Unit Weapon Beam Cannon Energy Gun Small Laser Energy Cannon Beam Cannon Ballistic Gun Subdweller Machine Gun Launcher Grenade Launcher Special Weapon Mining Laser Special Melee Weapon Datajack Build | -11 -10 -10 ------- Run | Yrd Mat Sub Slots Evolved . | . . . Power . | . . . Propulsion . | . . . Utility . | . . . Weapon . | . . . Parts Attached 22 | 7 9 6 Power 2 | 1 . 1 Engine 2 | 1 . 1 Core . | . . . Reactor . | . . . Propulsion 6 | 2 2 2 Treads 4 | 2 . 2 Leg . | . . . Wheel 2 | . 2 . Hover . | . . . Flight . | . . . Utility 7 | 2 4 1 Device 5 | 1 3 1 Storage 2 | 1 1 . Processor . | . . . Hackware . | . . . Protection . | . . . Artifact . | . . . Weapon 7 | 2 3 2 Energy Gun 1 | 1 . . Energy Cannon 1 | . 1 . Ballistic Gun 2 | 1 . 1 Ballistic Cannon . | . . . Launcher 1 | . . 1 Special Weapon 1 | . 1 . Impact Weapon . | . . . Slashing Weapon . | . . . Piercing Weapon . | . . . Special Melee Weapon 1 | . 1 . Unidentified Prototypes . | . . . Parts Lost 9 | . 3 6 Power 2 | . 1 1 Propulsion 3 | . 1 2 Utility 1 | . 1 . Weapon 3 | . . 3 Highest Loss Streak 3 | . 1 3 To Critical Strikes . | . . . Average Backups 16 | 3 14 19 Power 1 | . 1 1 Propulsion 4 | 1 3 4 Utility 6 | . 4 9 Weapon 3 | 1 4 3 Tool/Special . | . . . Unused Backups 14 | . . 14 Power 1 | . . 1 Propulsion 3 | . . 3 Utility 7 | . . 7 Weapon 3 | . . 3 Tool/Special . | . . . Average Slot Usage (%) 91 | . 89 94 Engine 6 | . 4 9 Treads 14 | . 14 14 Wheel 13 | . 13 13 Device 13 | . 13 14 Storage 14 | . 14 14 Energy Gun 6 | . 10 1 Energy Cannon 13 | . 13 13 Ballistic Gun 1 | . . 3 Launcher 1 | . . 3 Special Weapon 3 | . 1 5 Special Melee Weapon 1 | . 2 . Peak Build Rating 11 | 7 10 11 Average Rating 8 | 4 8 9 On Entrance 5 | . 7 9 Avg Prop Armor Cover (%) 13 | . 14 12 Naked Turns . | . . . Heaviest Build 94 | 11 88 94 Greatest Support 40 | 40 40 10 Greatest Overweight (x) 9 | 1 8 9 Average Overweight (x) 5 | . 5 8 Largest Inventory Capacity 25 | 8 25 25 Average Capacity 23 | 7 24 25 Most Carried 23 | 6 19 23 Average Carried 16 | 3 14 19 Final Capacity 25 | 8 25 25 Final Carried 23 | 5 18 23 Class Distribution -------------------- 100% | Mutant Dominant Class ---------------- Mutant | -10/Materials Mutant | -10/Subcaves Resources | -11 -10 -10 ----------- Run | Yrd Mat Sub Matter Collected 856 | 271 420 165 Remotely . | . . . Salvage Created 924 | 105 554 265 Parts 42 | 7 23 12 Haulers Intercepted . | . . . Recyclers Shooed . | . . . Parts Field Recycled . | . . . Retrieved Matter . | . . . Parts Self-Destructed 8 | . . 8 Prevented . | . . . Parts Restored . | . . . Kills | -11 -10 -10 ------- Run | Yrd Mat Sub Combat Hostiles Destroyed 20 | . 13 7 Guns 6 | . 6 . Cannons 11 | . 7 4 AOE 3 | . . 3 Classes Destroyed 6 | 2 3 1 Tunneler 1 | 1 . . Recycler 1 | 1 . . Watcher 3 | . 3 . Swarmer 3 | . 3 . Grunt 10 | . 10 . Subdweller 7 | . . 7 Best Kill Streak 3 | 2 3 2 Combat Bots Only 3 | . 3 2 Max Kills in Single Turn 1 | 1 1 1 Gunslinging . | . . . Exploded 1 | . . 1 Melee . | . . . Uniques/NPCs Destroyed . | . . . Combat | -11 -10 -10 -------- Run | Yrd Mat Sub Hostile Shots Fired 109 | . 63 46 Missed 33 | . 17 16 Hits 76 | . 46 30 Projectile 76 | . 46 30 AOE 2 | . . 2 Critical Strikes 3 | . 1 2 Damage Taken 1232 | . 510 722 Core 250 | . 114 136 Absorbed by Shields . | . . . Core Remaining (%) 100 | 100 . . Volleys Fired 74 | 2 37 35 Largest 2 | 2 2 2 Hottest 100 | 60 100 100 Shots Fired 121 | 4 72 45 Gun 44 | 4 35 5 Cannon 67 | . 36 31 Launcher 5 | . . 5 Special 5 | . 1 4 Kinetic 2 | 2 . . Thermal 114 | 2 72 40 Explosive 5 | . . 5 Electromagnetic . | . . . Robot Hit Streak 20 | 3 9 20 Robot Miss Streak 3 | . 3 1 Penetration Max . | . . . Secondary Targets . | . . . Shots Hit Robots 82 | 3 45 34 Core Hits 41 | 3 25 13 Critical Kills . | . . . Critical Parts Destroyed . | . . . Critical Strikes . | . . . Melee Attacks . | . . . Impact . | . . . Slashing . | . . . Piercing . | . . . Sneak Attacks . | . . . Combat Hostiles . | . . . Follow-up Attacks . | . . . Damage Inflicted 1561 | 29 651 881 Guns 355 | 29 285 41 Cannons 839 | . 366 473 Explosions 367 | . . 367 Melee . | . . . Ramming . | . . . Kinetic 6 | 6 . . Thermal 1188 | 23 651 514 Explosive 367 | . . 367 Electromagnetic . | . . . Impact . | . . . Slashing . | . . . Piercing . | . . . Highest Corruption . | . . . Average Corruption . | . . . Corruption Purged . | . . . Corruption Blocked . | . . . Overload Shots . | . . . Overflow Damage 10 | . . 10 Projectiles 10 | . . 10 Explosions . | . . . Melee . | . . . Knockbacks . | . . . Impact . | . . . Kinetic . | . . . Secondary . | . . . Self-Inflicted Damage 21 | . . 21 Shots 1 | . . 1 Rammed . | . . . Targets Rammed . | . . . Kicked . | . . . Crushed . | . . . Highest Temperature 182 | 20 182 . Average Temperature 52 | 15 54 . Received Heat Transfer 321 | . 243 78 Siege Activations . | . . . Martial Activations . | . . . Shielding Activations . | . . . Robots Disrupted . | . . . Combat Hostiles . | . . . Robots Corrupted . | . . . Combat Hostiles . | . . . Parts Fried . | . . . Impact Corruptions . | . . . Robots Melted . | . . . Combat Hostiles . | . . . Parts Melted 6 | . 3 3 Heat Transferred 2576 | 50 1427 1099 Parts Sabotaged . | . . . Parts Stolen . | . . . Parts Stripped . | . . . Power Chain Reactions . | . . . Alert | -11 -10 -10 ------- Run | Yrd Mat Sub Maximum Alert Level . | . . . Low Security (%) 100 | 100 100 . Level 1 . | . . . Level 2 . | . . . Level 3 . | . . . Level 4 . | . . . Level 5 . | . . . High Security . | . . . Max Security . | . . . Peak Influence 131 | 10 131 . Initial . | . . . Average 52 | . 57 . Influence Increases 408 | 10 398 . Destroy 0b10 Robot/C 260 | . 260 . Destroy 0b10 Robot/NC 25 | 10 15 . Destroy Leader 56 | . 56 . Successful Hack 5 | . 5 . Destroy Structure 2 | . 2 . Lose Combat Pursuer 60 | . 60 . Influence Decreases 408 | 10 362 36 Entered New Map 18 | . . 18 Time Decay 360 | 10 332 18 Lost Part 30 | . 30 . Squads Dispatched 3 | . 3 . Investigation . | . . . Extermination . | . . . Reinforcement 3 | . 3 . Assault . | . . . Garrison . | . . . Intercept . | . . . Searches Triggered . | . . . Construction Impeded . | . . . Haulers Reinforced . | . . . Active Scanning Responses . | . . . Cargo Convoy Interrupts . | . . . Stealth | -11 -10 -10 --------- Run | Yrd Mat Sub Distress Signals . | . . . Communications Jammed . | . . . Distress Signals . | . . . Times Spotted 31 | . 23 8 Peak Tracking Total 5 | . 5 2 Tactical Retreats 3 | . 3 . Traps | -11 -10 -10 ------- Run | Yrd Mat Sub Traps Triggered . | . . . Indirectly . | . . . Trap Hack Attempts 20 | . 20 . Triggered . | . . . Disarmed 3 | . 3 . Reprogrammed . | . . . Reused . | . . . Traps Extracted . | . . . Installed . | . . . Triggered . | . . . Machines | -11 -10 -10 ---------- Run | Yrd Mat Sub Machines Disabled . | . . . Max in Single Turn . | . . . Machines Repaired . | . . . Machines Dismantled . | . . . Machines Sabotaged . | . . . Overloaded Fab Kills . | . . . Hacking | -11 -10 -10 --------- Run | Yrd Mat Sub Machines Accessed 6 | . 6 . Terminals 5 | . 5 . Fabricators . | . . . Repair Stations . | . . . Recycling Units 1 | . 1 . Scanalyzers . | . . . Garrison Access . | . . . Total Hacks 16 | . 16 . Successful 6 | . 6 . Failed 10 | . 10 . Catastrophic 1 | . 1 . Database Lockouts . | . . . Manual 13 | . 13 . Terminals 11 | . 11 . Fabricators . | . . . Repair Stations . | . . . Recycling Units 5 | . 5 . Scanalyzers . | . . . Garrison Access . | . . . Terminal Hacks 1 | . 1 . Recall Reinforcements 1 | . 1 . Fabricator Hacks . | . . . Repair Station Hacks . | . . . Recycling Unit Hacks 1 | . 1 . Report Inventory 1 | . 1 . Scanalyzer . | . . . Garrison Access Hacks . | . . . Unauthorized Hacks 4 | . 4 . Terminals 2 | . 2 . Botnet 2 | . 2 . Fabricators . | . . . Repair Stations . | . . . Recycling Units 2 | . 2 . Recyclers 1 | . 1 . Mask 1 | . 1 . Scanalyzers . | . . . Garrison Access . | . . . Data Cores Recovered . | . . . Used . | . . . Hacking Detections 6 | . 6 . Full Trace Events . | . . . Feedback Events . | . . . Feedback Blocked . | . . . Robot Schematics Acquired . | . . . Robots Built . | . . . Authchips . | . . . Time . | . . . Total Robot Build Rating . | . . . Part Schematics Acquired . | . . . Parts Built . | . . . Authchips . | . . . Time . | . . . Total Part Build Rating . | . . . Part Studies Acquired . | . . . Parts Repaired . | . . . Time . | . . . Parts Recycled . | . . . Recycled Matter . | . . . Retrieved Matter . | . . . Retrieved Components . | . . . Parts Scanalyzed . | . . . Part Schematics Acquired . | . . . Parts Damaged . | . . . Bothacking | -11 -10 -10 ------------ Run | Yrd Mat Sub Used RIF Installer . | . . . Robots Hacked . | . . . Non-combat . | . . . Combat . | . . . Robot Hacks Applied . | . . . Relay Couplers Released . | . . . Fabnet Peak Effective % . | . . . Robots Rewired . | . . . Allies Hacked . | . . . Hacks Repelled . | . . . Allies | -11 -10 -10 -------- Run | Yrd Mat Sub Total Allies . | . . . Largest Group . | . . . Highest-Rated Group . | . . . Highest-Rated Ally . | . . . Total Orders . | . . . Ally Attacks . | . . . Total Damage . | . . . Kills . | . . . Allies Corrupted . | . . . Allies Melted . | . . . Intel | -11 -10 -10 ------- Run | Yrd Mat Sub Active Infowar (turns) 986 | 45 336 605 Structural 580 | . 64 516 Seismic 317 | 45 272 . ECM 89 | . . 89 Robot Analysis Total . | . . . Derelict Logs Recovered . | . . . Drone Launches . | . . . Drone Recoveries . | . . . Exploration | -11 -10 -10 ------------- Run | Yrd Mat Sub Turns Passed 2034 | 122 1079 833 Spaces Moved 875 | 64 459 352 Core 3 | 3 . . Treads 73 | 61 12 . Legs . | . . . Wheels 799 | . 447 352 Hover . | . . . Flight . | . . . Fastest Speed 50 | 50 160 200 Average Speed 185 | 156 176 203 Slowest Speed 215 | 160 200 215 Overloaded Moves . | . . . Propulsion Burnouts . | . . . Robots Hopped . | . . . Potential Cave-ins . | . . . Cave-ins Triggered . | . . . Exploration Rate (%) 37 | 4 90 18 Regions Visited 2 Branch Regions 1 Pre-discovered Areas . | . . . Known Exits Taken . | . . . Unknown Exits Taken 2 | 1 1 . Scrap Searched . | . . . Spaces Dug 1 | . 1 . Terrain Destroyed 25 | . 1 24 Melee . | . . . Projectile 1 | . 1 . AOE 24 | . . 24 Terrain Rammed . | . . . Walls Destroyed . | . . . Machines Disabled . | . . . Actions | -11 -10 -10 --------- Run | Yrd Mat Sub Total 1141 | 80 651 410 Wait 109 | . 109 . Move 873 | 63 458 352 Hop . | . . . Pick Up 28 | 8 12 8 Fast Attach 6 | 4 1 1 Attach 8 | 3 2 3 Detach 1 | . 1 . Swap 22 | . 11 11 Drop . | . . . Fire 74 | 2 37 35 Melee . | . . . Ram . | . . . Kick . | . . . Crush . | . . . Escape Stasis . | . . . Rewire . | . . . Trap 20 | . 20 . Miscellaneous . | . . . Route ------- -11/Scrapyard -10/Materials (discovered 6 exits: [*Mat x3] / [*Min x2] / [*Sub]) -10/Subcaves History --------- Turn | Location | Event 21 | -11/Scrapyard | Discovered new exit (range 14) 123 | -11/Scrapyard | Entered Materials 317 | -10/Materials | Build established: Mutant 327 | -10/Materials | Discovered new exit (range 13) 555 | -10/Materials | Discovered new exit (range 4) 693 | -10/Materials | Discovered new exit (range 10) 1006 | -10/Materials | Discovered new exit (range 3) 1100 | -10/Materials | Discovered new exit (range 16) 1180 | -10/Materials | Discovered new exit (range 7) 1202 | -10/Materials | Entered Subcaves 1203 | -10/Subcaves | Approached by a straggling Scientist 1780 | -10/Subcaves | Core integrity fell below 50% 1959 | -10/Subcaves | Shifting Twisted Machinery released Flamer 2023 | -10/Subcaves | Core integrity fell below 20% 2035 | -10/Subcaves | Destroyed by CE-FFE(R) with Subdweller Machine Gun Last Messages --------------- 01797_ RE-N6Q(R) destroyed. 01800_ Subatomizers dissect the Sub. Optics. 01807_ Sml. Laser destroyed. 01809_ TS-DHW(R) destroyed. 01815_ Subatomizers dissect the Sub. Optics. 01821_ Acquired Sub. Machine Gun. 01822_ Acquired 41 matter. 01825_ Acquired 4 matter. 01829_ Acquired Sub. Optics. 01830_ Subatomizers dissect the Sub. Optics. 01832_ Acquired Sub. Optics. 01838_ Acquired 10 matter. 01895_ Acquired Battle Rifle. Flamer falls loose from the Twisted Machinery. 01966_ Acquired Flamer. 02017_ Ion Engine destroyed. 02030_ Lgt. Treads destroyed. 02033_ Sub. Power Source melted. 02033_ 22-P6X(R) destroyed. 02033_ Beam Cannon destroyed. Map ----- +----------------------------------------------------+ | ###????????????????????????????????? | | ## ######?????????????????????????????? | | ### #####?????????????????????????????? | | ### " ##?????????????????????????????? | | ### " ##?????????????????????????????? | | ### ""##?????????????????????????????? | | #### #### "###????????? " ?????????????????? | | ##### #### "###???????####"?????????????????? | | #?########### "##????????## # ?????????????????? | | ???########### ###???????? ?????????????????? | | ???????????### ####??????? ""????????????????????? | | ???????????## ###??????? ?????????????????????? | | ???????????## ###### ""??????????????????????? | | ???????????## ####### ###??????????????????????? | | ???????????## ## "" ##??????????????????????? | | ???????????###" # " " ###??????????????????????? | | ???????????### # ######???????????????????????? | | ????????????## ## "######???????????????????????? | | ????????????##" "###??????????????????????????? | | ????????????## "" ##??????????????????????????? | | ???????????### " ###??????????????????????????? | | ??????????#### "" ##???##?????????????????????? | | ??????????### "" ##?## ##????????????????????? | | ??????????##"" "" #### #????????????????????? | | ??????????##""""" ### # #??????????????????? | | ??????????## "" ! @ #??????????????????? | | ??????????###""" !%& ###????????????????? | | ??????????###"" ""R ## ##????????????????? | | ???????????#""" "##### ##### #????????????????? | | ??????????? " #########????????????????????? | | ??????????? "" ???# #?????????????????????? | | ??????????? " ## ????????????????????????????? | | ??????????? ## ????????????????????????????? | | ?????????? ? ????????????????????????????? | | ????????? ?? ????????????????????????????? | | ????????? ?? ????????????????????????????? | | ?????????? ??? ???????????????????????????????? | | ????????????? ???????????????????????????????? | | ??????????????? ???????????????????????????????? | | ?????????????????????????????????????????????????? | | ?????????????????????????????????????????????????? | | ?????????????????????????????????????????????????? | | ?????????????????????????????????????????????????? | | ?????????????????????????????????????????????????? | | ?????????????????????????????????????????????????? | | ?????????????????????????????????????????????????? | | ?????????????????????????????????????????????????? | | ?????????????????????????????????????????????????? | | ?????????????????????????????????????????????????? | | ?????????????????????????????????????????????????? | +----------------------------------------------------+ Best States ------------- Heat Dissipation 39 Energy Generation 10 Energy Capacity 250 Matter Stores 300 Matter Capacity 300 Sight Range 16 Terrain Scan Density 10 ECM Strength 1 Evasion (%) 40 Recoil Reduction 2 Item Schematics ----------------- None Robot Schematics ------------------ None Fabricated ------------ Nothing Repaired ---------- Nothing Studied --------- None Alien Tech Used ----------------- None Achievements -------------- None Challenges ------------ None Game ------ Seed DerelictMetamassCannon Manual? 0 Play Time 00:20:15 Cumulative 127.0 hours Start 2026.02.14 @ 20:46:40 End 2026.02.14 @ 21:06:24 Sessions 1 Manual Loads 0 Difficulty Rogue Special Mode None Game No. 138 Rogue 138 Adventurer 0 Explorer 0 Win Type - Total 4 Types 4/0/0/0/0/0/0/0/0/0 Lore% 68 Gallery% 52 Achievement% 41 Wizard Run 0 Options --------- Layout 0 ASCII 0 Keyboard 1 Movement Vi Keybinds 0 Fullscreen 1 Font 24/Terminus Map View 76x50 Zoom Use 0% Tactical HUD 1 Map Filters NONE Filters NONE Steam 1 RUN: 57f1783f-1fc0-4d2b-96b6-d1189aecc998